[Event "Kezmarok Chess Open 2022"]
[Site "Kezmarok"]
[Date "2022.09.27"]
[Round "5.4"]
[White "Bazakutsa, Svyatoslav"]
[Black "Walter, Ema"]
[Result "1-0"]
[ECO "A20"]
[WhiteElo "2182"]
[BlackElo "2062"]
[Annotator "TA"]
[PlyCount "83"]
[EventDate "2022.09.24"]
[EventType "swiss"]
[EventCountry "SVK"]
[SourceTitle "playchess.com"]
[Source "ChessBase"]
[SourceQuality "1"]
[TimeControl "40/5400+30:1800+30"]

{[%evp 9,83,12,9,16,8,16,16,16,15,11,11,9,24,12,26,20,27,0,0,0,0,0,21,13,20,18,18,20,15,20,25,7,14,19,20,14,23,21,29,27,31,35,23,21,25,21,29,38,34,6,16,11,14,8,104,93,93,86,93,87,276,281,279,280,282,278,276,271,269,267,264,73,264,254,250,243]} 1. c4 {[%emt 0:00:03]} e5 {[%emt 0:01:10]} 2. g3 {[%emt 0:00:04]} c6 {[%emt 0:00:36]} 3. Nf3 {[%emt 0:00:06]} e4 {[%emt 0:00:06]} 4. Nd4 {[%emt 0:00:05]} d5 {[%emt 0:00:05]} 5. cxd5 {[%emt 0:00:07]} Qxd5 {[%emt 0:00:24]} 6. Nc2 {[%emt 0:00:08] A20: English Opening: 1...e5.} Nf6 {[%emt 0:00:07]} 7. Nc3 {[%emt 0:00:07]} Qe5 {[%emt 0:00:22]} 8. Bg2 {[%emt 0:00:08] The position is equal.} Na6 {[%emt 0:00:12]} 9. O-O {[%emt 0:00:07]} Be7 {[%emt 0:00:05]} 10. d4 {[%emt 0:00:08]} exd3 $1 {[%emt 0:00:06]} 11. Qxd3 {[%emt 0:00:06]} Qh5 {[%emt 0:00:42]} 12. e4 {[%emt 0:00:10]} O-O {[%emt 0:00:30]} 13. f3 {[%emt 0:00:05] [#]} (13. Qd1 $5 {[%cal Rd1h5]}) 13... Rd8 $146 {[%emt 0:00:39]} ({Predecessor:} 13... Be6 14. Be3 Rfd8 15. Qe2 Bc5 16. Rad1 Bxe3+ 17. Qxe3 Qe5 18. Nd4 Bc4 19. Rfe1 Nb4 {1-0 (27) Bazakutsa,S (2018)-Lavrencic,M (1521) Tornelo INT 2020}) 14. Qe2 {[%emt 0:00:06]} Nb4 {[%emt 0:00:11]} 15. Be3 {[%emt 0:00:07]} Nxc2 {[%emt 0:00:14]} 16. Qxc2 {[%emt 0:00:05]} Bc5 {[%emt 0:00:04]} 17. Qf2 {[%emt 0:00:13]} Bxe3 {[%emt 0:00:16]} 18. Qxe3 {[%emt 0:00:02]} Be6 {[%emt 0:01:13]} 19. Rfd1 {[%emt 0:00:07]} Qa5 {[%emt 0:00:13]} 20. h3 {[%emt 0:00:07]} Qb6 {[%emt 0:00:58]} 21. Qf2 {[%emt 0:00:14]} Nd7 {[%emt 0:07:06]} 22. Rd4 {[%emt 0:20:43]} Qc7 {[%emt 0:18:29]} 23. Rad1 {[%emt 0:08:55]} Nb6 {[%emt 0:13:28]} 24. f4 {[%emt 0:01:17]} f6 {[%emt 0:04:46][%cal Bf7f6,Bf6e5][%mdl 32]} 25. Bf1 {[%emt 0:16:46][%cal Bg2f1,Bf1e2,Be2d1,Bd1g4,Bg4e6][%mdl 32]} Kf8 {[%emt 0:17:44]} 26. Kg2 {[%emt 0:14:17]} Ke8 {[%emt 0:01:44]} 27. Be2 {[%emt 0:00:50]} Bf7 {[%emt 0:06:28]} 28. e5 {[%emt 0:09:49] And now exf6 would win.} fxe5 {[%emt 0:08:05]} 29. Re4 {[%emt 0:00:16]} (29. fxe5 $5 {[%cal Re5e6]} Rxd4 30. Rxd4 $14 (30. Qxd4 Rd8 $11)) 29... Rxd1 {[%emt 0:01:15]} 30. Bxd1 {[%emt 0:00:11]} Rd8 {[%emt 0:03:38]} 31. Bg4 {[%emt 0:04:19]} Bd5 {[%emt 0:02:36]} (31... Nc4 $11) 32. Nxd5 $16 {[%emt 0:01:10]} cxd5 {[%emt 0:00:47]} 33. Rxe5+ {[%emt 0:00:42]} Kf8 {[%emt 0:00:03]} 34. Be6 $36 {[%emt 0:02:14][%mdl 2048] aiming for Rf5+. White is in control. White is more active.} g6 {[%emt 0:08:14] Inhibits Rf5+.} (34... Rd6 $16 {is a better defense.}) 35. Qd4 $18 {[%emt 0:01:05]} Qc2+ {[%emt 0:03:23]} 36. Kg1 {[%emt 0:00:10]} Qc1+ {[%emt 0:01:08] [#]} 37. Kf2 $1 {[%emt 0:00:12] White threatens Qb4+ and mate. Chess con chili.} Qc7 {[%emt 0:00:27]} 38. Re2 {[%emt 0:04:49] Intending Qf6+ and mate.} Qg7 {[%emt 0:01:16] Inhibits Qf6+.} 39. Qb4+ {[%emt 0:00:11]} Qe7 {[%emt 0:00:23] [#]} 40. Qxe7+ {[%emt 0:00:32]} Kxe7 {[%emt 0:00:05]} 41. Bxd5+ $1 {[%emt 0:31:10]} Kf6 42. Bxb7 {Weighted Error Value: White=0.04 (flawless) /Black=0.13 (very precise)} 1-0

[Event "Kezmarok Chess Open 2022"]
[Site "Kezmarok"]
[Date "2022.09.27"]
[Round "5.5"]
[White "Sosovickova, Jana"]
[Black "Kovac, Lubomir"]
[Result "1/2-1/2"]
[ECO "C55"]
[WhiteElo "2039"]
[BlackElo "2091"]
[Annotator "TA"]
[PlyCount "45"]
[EventDate "2022.09.24"]
[EventType "swiss"]
[EventCountry "SVK"]
[SourceTitle "playchess.com"]
[Source "ChessBase"]
[SourceQuality "1"]
[TimeControl "40/5400+30:1800+30"]

{[%evp 13,45,36,48,46,65,62,64,61,70,0,13,0,0,0,3,-7,36,39,32,12,13,11,19,22,47,12,19,18,4,11,22,0,1,1]} 1. e4 e5 2. Nf3 Nc6 3. Bc4 Nf6 4. d3 Be7 5. O-O O-O 6. Re1 d6 7. a4 Bg4 8. c3 {C55: Two Knights: 4 d3, 4 d4 exd4 5 e5 and Max Lange Attack.} d5 9. exd5 Nxd5 10. h3 {White is slightly better.} Bh5 11. g4 ({Better is} 11. a5 $14) 11... Bg6 $11 12. Nxe5 (12. a5 $5 {[%cal Rd1b3]}) 12... Nxe5 13. Rxe5 Nb6 14. Bb3 {[#]} Bf6 $146 ({Predecessor:} 14... Bxd3 15. Rxe7 Qxe7 16. Qxd3 Qe1+ 17. Qf1 Rae8 18. Be3 Rxe3 19. fxe3 Qxe3+ 20. Kg2 Qe4+ {1-0 (27) Martinelli,R (1678)-Moreno,N (1684) Montevideo 2021}) 15. Re3 Bg5 16. Rf3 Bxc1 17. Qxc1 Bxd3 18. a5 Nc8 19. Qd2 Bg6 {The position is equal.} 20. Qxd8 Rxd8 21. Na3 Nd6 22. Re1 Re8 23. Rfe3 {Weighted Error Value: White=0.17 (very precise) /Black=0.12 (very precise)} 1/2-1/2

[Event "Kezmarok Chess Open 2022"]
[Site "Kezmarok"]
[Date "2022.09.27"]
[Round "5.6"]
[White "Demeter, Peter"]
[Black "Belus, Benjamin"]
[Result "1-0"]
[ECO "A06"]
[WhiteElo "2067"]
[BlackElo "1932"]
[Annotator "TA"]
[PlyCount "31"]
[EventDate "2022.09.24"]
[EventType "swiss"]
[EventCountry "SVK"]
[SourceTitle "playchess.com"]
[Source "ChessBase"]
[SourceQuality "1"]
[TimeControl "40/5400+30:1800+30"]

{[%evp 15,31,18,23,18,30,0,8,-7,8,-22,0,4,28,28,431,431,431,431]} 1. Nf3 d5 2. g3 g6 3. Bg2 Bg7 4. c4 Nf6 5. cxd5 Nxd5 6. Nc3 Nxc3 7. bxc3 O-O 8. O-O Nc6 9. Qc2 {A16: English Opening: 1...Nf6 with ...d5.} (9. d4 {keeps more tension.} e5 10. Bg5 f6 11. Bc1) 9... Rb8 10. d3 b6 {[#]} 11. Bd2 $146 {The position is equal.} ({Predecessor:} 11. Rb1 Bb7 12. Rd1 Na5 13. Bf4 Rc8 14. Bh3 e6 15. Bg2 c5 16. h4 Qe7 17. Bg5 f6 18. Be3 e5 19. h5 {½-½ (29) Lein,A-Bagirov,V Riga 1968}) 11... Bb7 12. Qa4 a5 13. Rac1 Ne5 14. Nxe5 Bxe5 $4 {[%mdl 8192] [#]} (14... Bxg2 $11 15. Kxg2 Bxe5) 15. Bxb7 $18 Rxb7 16. Qe4 $1 {[%csl LRb7,LRe5] Black got outplayed after the opening.  Weighted Error Value: White=0.09 (flawless) /Black=0.99} 1-0

[Event "Kezmarok Chess Open 2022"]
[Site "Kezmarok"]
[Date "2022.09.27"]
[Round "5.7"]
[White "Elias, David"]
[Black "Velychko, Semen"]
[Result "1-0"]
[ECO "D85"]
[WhiteElo "1988"]
[BlackElo "1604"]
[Annotator "TA"]
[PlyCount "53"]
[EventDate "2022.09.24"]
[EventType "swiss"]
[EventCountry "SVK"]
[SourceTitle "playchess.com"]
[Source "ChessBase"]
[SourceQuality "1"]
[TimeControl "40/5400+30:1800+30"]

{[%evp 13,53,22,19,0,0,0,37,45,52,52,86,93,109,99,145,135,154,110,165,125,187,187,190,187,187,187,187,179,179,178,172,177,234,105,200,189,240,247,247,247,462,466]} 1. d4 {[%emt 0:00:44]} Nf6 {[%emt 0:00:13]} 2. c4 {[%emt 0:00:12]} g6 {[%emt 0:00:08]} 3. Nc3 {[%emt 0:00:07]} d5 {[%emt 0:00:07]} 4. cxd5 {[%emt 0:00:35]} Nxd5 {[%emt 0:00:13]} 5. Bd2 {[%emt 0:00:30]} Bg7 {[%emt 0:03:22]} 6. e4 {[%emt 0:00:07]} Nxc3 {[%emt 0:01:28]} 7. Bxc3 {[%emt 0:00:08]} O-O {[%emt 0:01:00][%cal Oc7c5]} 8. Be2 {[%emt 0:04:11] D85: Exchange Grünfeld: Unusual White 7th moves and lines with 7 Nf3.} c5 {[%emt 0:01:39][%cal Rc5d4]} 9. d5 {[%emt 0:01:11]} ({But not} 9. dxc5 Bxc3+ 10. bxc3 Qc7 $15) 9... Nd7 {[%emt 0:03:16]} 10. Nf3 {[%emt 0:03:25] White is slightly better.} Qc7 {[%emt 0:06:37]} 11. O-O {[%emt 0:02:12] [#]} Ne5 $146 {[%emt 0:04:18]} ({Predecessor:} 11... Rd8 12. Qb3 Qb6 13. Qa3 Qc7 14. Rac1 b6 15. Bxg7 Kxg7 16. Qc3+ Nf6 17. Bc4 Rb8 {½-½ (36) Marodi,M (2158)-Solyomvari,R (1986) Budapest 2004}) 12. Nd2 {[%emt 0:03:21]} f6 {[%emt 0:14:31]} 13. Rc1 {[%emt 0:02:27][%cal Oc3d4]} b6 {[%emt 0:06:09]} (13... Bh6 $142) 14. b4 $16 {[%emt 0:07:23]} Nd7 {[%emt 0:03:44]} 15. Bb5 {[%emt 0:08:27]} Bb7 {[%emt 0:05:57]} (15... a6 $16 {might work better.} 16. Be2 Bb7) 16. Bd4 {[%emt 0:05:20]} f5 {[%emt 0:10:55]} (16... Bh6 $16) 17. Qb3 $18 {[%emt 0:03:07]} Kh8 {[%emt 0:07:29]} 18. Bxg7+ {[%emt 0:02:51]} Kxg7 {[%emt 0:00:05]} 19. Bxd7 {[%emt 0:00:20]} Qxd7 {[%emt 0:00:07]} 20. bxc5 {[%emt 0:00:10]} bxc5 {[%emt 0:00:43]} 21. Rxc5 {[%emt 0:01:03] Threatens to win with Qc3+.} Rac8 {[%emt 0:02:52]} 22. Ra5 {[%emt 0:02:56]} a6 {[%emt 0:04:44] [#]} (22... Ba8 $142 23. Rd1 a6) 23. Re1 {[%emt 0:07:31]} (23. Nf3 $1 $18) 23... fxe4 {[%emt 0:07:08]} (23... Qc7 $16 24. Ra3 Qc5) 24. Nxe4 {[%emt 0:00:42] aiming for Nc5.} Qc7 {[%emt 0:01:11]} (24... Qd8 $142 25. Qb4 (25. Qxb7 Qxa5 26. Qxe7+ Kh8 $16) 25... Rc4 26. Qxc4 (26. Qxb7 Qxa5 27. Qxe7+ Kg8 $16) 26... Qxa5) 25. Rc5 {[%emt 0:13:49]} Qe5 {[%emt 0:01:25] [#] And now ...Rxc5 would win.} 26. Kf1 $1 {[%emt 0:05:55]} Rxc5 $2 {[%emt 0:04:48]} (26... Ba8 27. Ng5 Qxg5 28. Qc3+ Kf7) 27. Nxc5 {Weighted Error Value: White=0.13 (very precise) /Black=0.45} 1-0

[Event "Kezmarok Chess Open 2022"]
[Site "Kezmarok"]
[Date "2022.09.27"]
[Round "5.8"]
[White "Vestur, Rastislav"]
[Black "Bochnickova, Simona"]
[Result "0-1"]
[ECO "A09"]
[WhiteElo "1789"]
[BlackElo "1903"]
[Annotator "TA"]
[PlyCount "90"]
[EventDate "2022.09.24"]
[EventType "swiss"]
[EventCountry "SVK"]
[SourceTitle "playchess.com"]
[Source "ChessBase"]
[SourceQuality "1"]
[TimeControl "40/5400+30:1800+30"]

{[%evp 9,90,0,-4,-10,1,4,14,-8,7,9,48,20,50,41,43,39,34,42,36,16,29,26,35,38,98,54,71,0,137,43,35,48,63,46,187,175,175,96,113,108,152,110,158,120,138,115,180,27,204,200,256,293,345,194,244,230,345,341,386,380,362,193,347,295,312,222,214,202,179,-1576,-1554,-1552,-1512,-1515,-1379,-3203,-3019,-2265,-2236,-1937,-1664,-1535,-1467]} 1. Nf3 {[%emt 0:04:22]} d5 {[%emt 0:00:08]} 2. c4 {[%emt 0:00:06]} d4 {[%emt 0:00:04]} 3. e3 {[%emt 0:00:06]} Nc6 {[%emt 0:00:06]} 4. exd4 {[%emt 0:04:08]} Nxd4 {[%emt 0:00:07]} 5. Nxd4 {[%emt 0:01:29]} Qxd4 {[%emt 0:00:07]} 6. Be2 {[%emt 0:00:23] A09: Réti Opening: 1 Nf3 d5 2 c4.} Nf6 {[%emt 0:03:10]} 7. Nc3 {[%emt 0:02:46]} c6 {[%emt 0:00:07]} 8. O-O {[%emt 0:04:51] The position is equal.} Bf5 {[%emt 0:04:29]} 9. d3 {[%emt 0:00:54] [#]} g6 $146 {[%emt 0:04:07]} ({Predecessor:} 9... e6 10. Be3 Qd7 11. d4 Be7 12. Qb3 O-O 13. Rad1 Qc7 14. h3 Bg6 15. Bf3 Nd7 {½-½ (34) Haselhorst,H (2146)-Wienen,H (1949) Germany 2008}) 10. Be3 {[%emt 0:04:57]} Qd7 {[%emt 0:00:12]} 11. d4 {[%emt 0:07:45]} Bg7 {[%emt 0:00:21]} 12. Qd2 {[%emt 0:04:03]} O-O {[%emt 0:01:00]} 13. Rad1 {[%emt 0:01:31]} Rfd8 {[%emt 0:01:38]} 14. h3 {[%emt 0:02:54]} h5 {[%emt 0:15:07]} 15. Bf3 {[%emt 0:02:01]} Rac8 {[%emt 0:03:16]} 16. Rfe1 {[%emt 0:01:23]} Ne8 {[%emt 0:03:35]} (16... b5 $14) 17. a3 {[%emt 0:05:47][%cal Ba2a3,Ba3a4][%mdl 32]} Nc7 {[%emt 0:02:34]} 18. b4 {[%emt 0:03:03]} (18. Qe2 $16) 18... Ne6 {[%emt 0:05:50]} (18... b5 $11) 19. Ne2 {[%emt 0:00:26]} ({White should try} 19. d5 $1 $16) 19... h4 $14 {[%emt 0:06:06]} 20. a4 {[%emt 0:06:32]} Qe8 {[%emt 0:07:05][%cal Oc6c5]} 21. Qa2 {[%emt 0:01:40]} Rc7 {[%emt 0:07:30] [#]} (21... Bf6 $14) 22. d5 $1 $18 {[%emt 0:02:13]} cxd5 {[%emt 0:00:40]} 23. Bxd5 {[%emt 0:02:53]} (23. cxd5 $18 Nf8 24. Nd4 (24. Bxa7 Rc2 $16)) 23... b6 $16 {[%emt 0:03:31]} 24. a5 {[%emt 0:08:43]} bxa5 {[%emt 0:00:56]} 25. Qxa5 {[%emt 0:00:15]} Rdd7 {[%emt 0:05:48]} ({Better is} 25... Rcd7) 26. Qa4 {[%emt 0:03:56]} Qd8 {[%emt 0:01:39]} 27. Qb3 {[%emt 0:02:33]} Bf6 {[%emt 0:05:48]} (27... Be5 $16 28. c5 Bc2 29. Qxc2 Rxd5) 28. Nc3 $2 {[%emt 0:07:03]} ({White should play} 28. Nf4 $18) 28... a6 $2 {[%emt 0:06:31]} (28... Bxc3 $11 {and Black stays safe.} 29. Qxc3 Rxd5 30. Rxd5 Qxd5 31. cxd5 Rxc3 32. dxe6 Bxe6) 29. Bb6 {[%emt 0:00:26] And now Ne4 would win.} Qc8 {[%emt 0:02:25]} 30. Bxc7 {[%emt 0:00:13]} Qxc7 {[%emt 0:00:20]} 31. Ne2 {[%emt 0:02:44] Against Nd4} (31. Bxe6 $142 Bxe6 32. Rxd7 Qxd7 33. Ne4) 31... Ng5 {[%emt 0:01:29]} (31... Kg7 $142 32. Qe3 Rd8 33. Bxe6 Rxd1 34. Rxd1 Bxe6) 32. c5 {[%emt 0:03:29]} e6 {[%emt 0:02:48]} (32... Kg7 {is a better defense.} 33. Qa4 Qc8) 33. Bc4 $18 {[%emt 0:00:39]} Rxd1 {[%emt 0:01:48]} 34. Rxd1 {[%emt 0:00:39]} (34. Qxd1 Qb7 $16) 34... a5 {[%emt 0:00:01]} 35. Nd4 {[%emt 0:02:25]} (35. bxa5 $142 {Qb6 is the strong threat.} Qxa5 36. Qb6) 35... Be4 $2 {[%emt 0:01:43]} (35... axb4 {was called for.} 36. c6 (36. Qxb4 Bxh3 37. Bf1 Bf5 $16) (36. Nxf5 gxf5 37. Qxb4 Qf4 $14) 36... Be4 37. Qxb4 Be7) 36. Nb5 {[%emt 0:01:28]} Qf4 {[%emt 0:01:13] aiming for ...Be5.} 37. Nd6 {[%emt 0:00:43]} (37. bxa5 Be5 38. Kf1 (38. f3 $2 Nxf3+ 39. gxf3 Qh2+ 40. Kf1 Bg3 $19) 38... Qh2 $19) (37. f3 $2 {[#]} Bxf3 $1 {[%mdl 512]} 38. gxf3 a4 $19) 37... Be5 {[%emt 0:04:25]} 38. Nxe4 {[%emt 0:00:43]} (38. Kf1 Qh2 39. Nxe4 Nxe4) 38... Nxe4 {[%emt 0:00:31]} 39. f3 {[%emt 0:03:05][%mdl 8192]} ({Not} 39. bxa5 $2 Qxf2+ 40. Kh1 Qf4 $19) (39. Qf3 $18 Qh2+ 40. Kf1) 39... Qh2+ {[%emt 0:00:54] Black is clearly winning.} 40. Kf1 {[%emt 0:00:11]} Qh1+ {[%emt 0:00:13]} 41. Ke2 {[%emt 0:30:21]} Nc3+ {[%emt 0:02:08]} 42. Kd2 {[%emt 0:00:00]} Qxg2+ {[%emt 0:01:03]} 43. Ke3 {[%emt 0:00:00]} Qg5+ {[%emt 0:02:41]} 44. Kd3 {[%emt 0:00:00]} Qd8+ {[%emt 0:02:08]} 45. Bd5 {[%emt 0:00:00]} Nxd1 {[%emt 0:00:22] What a bad dream for White.  Weighted Error Value: White=0.56/Black=0.42} 0-1

[Event "Kezmarok Chess Open 2022"]
[Site "Kezmarok"]
[Date "2022.09.27"]
[Round "5.9"]
[White "Mirowska, Oliwia"]
[Black "Skapikova, Lubica"]
[Result "1-0"]
[ECO "A03"]
[WhiteElo "1856"]
[BlackElo "1823"]
[Annotator "NA RC COMBH"]
[PlyCount "85"]
[EventDate "2022.09.24"]
[EventType "swiss"]
[EventCountry "SVK"]
[SourceTitle "playchess.com"]
[Source "ChessBase"]
[SourceQuality "1"]
[TimeControl "40/5400+30:1800+30"]

1. f4 {[%emt 0:00:56]} d5 {[%emt 0:00:10]} 2. Nf3 {[%emt 0:00:26]} Nf6 {[%emt 0:00:14]} 3. g3 {[%emt 0:00:09]} g6 {[%emt 0:00:13]} 4. Bg2 {[%emt 0:00:27]} Bg7 {[%emt 0:00:05]} 5. d3 {[%emt 0:00:08]} O-O {[%emt 0:00:16]} 6. O-O {[%emt 0:00:11]} c6 {[%emt 0:00:13]} 7. h3 {[%emt 0:03:47]} Nh5 {[%emt 0:07:48]} 8. Kh2 {[%emt 0:00:15]} Qc7 {[%emt 0:00:16]} 9. e4 {[%emt 0:03:03]} e5 {[%emt 0:05:39]} 10. f5 {[%emt 0:01:22]} gxf5 {[%emt 0:00:12]} 11. Nh4 {[%emt 0:01:34]} Nf6 {[%emt 0:09:19]} 12. Nxf5 {[%emt 0:04:12]} dxe4 {[%emt 0:00:15]} 13. Nxg7 {[%emt 0:04:14]} Kxg7 {[%emt 0:00:15]} 14. Qd2 {[%emt 0:02:47]} Ne8 {[%emt 0:03:18]} 15. Bxe4 {[%emt 0:13:31]} f6 {[%emt 0:01:48]} 16. Qh6+ {[%emt 0:10:41]} Kg8 {[%emt 0:00:05]} 17. g4 {[%emt 0:01:29]} Qg7 {[%emt 0:07:11]} 18. Qh4 {[%emt 0:01:23]} Qe7 {[%emt 0:06:15]} 19. Be3 {[%emt 0:07:09]} Be6 {[%emt 0:06:14]} 20. Bc5 {[%emt 0:00:59]} Qg7 {[%emt 0:01:07]} 21. Bxf8 {[%emt 0:00:38]} Kxf8 {[%emt 0:00:05]} 22. g5 {[%emt 0:00:38]} Nd7 {[%emt 0:00:27]} 23. gxf6 {[%emt 0:01:23]} Nexf6 {[%emt 0:00:18]} 24. Nc3 {[%emt 0:00:45]} Ke7 {[%emt 0:02:12]} 25. Rg1 {[%emt 0:03:59]} Qf7 {[%emt 0:00:08]} 26. Raf1 {[%emt 0:00:45]} Rg8 {[%emt 0:03:47]} 27. Rxg8 {[%emt 0:01:27]} Qxg8 {[%emt 0:00:05]} 28. Bg2 {[%emt 0:03:46]} Bd5 {[%emt 0:07:37]} 29. Nxd5+ {[%emt 0:00:52]} cxd5 {[%emt 0:00:05]} 30. Qb4+ {[%emt 0:00:23]} Ke6 {[%emt 0:08:13]} 31. Qxb7 {[%emt 0:09:27]} Qg5 {[%emt 0:00:37]} 32. Qxa7 {[%emt 0:05:57]} Nh5 {[%emt 0:00:24]} 33. Bxd5+ {[%emt 0:01:52]} Kd6 {[%emt 0:00:35]} 34. Bg2 {[%emt 0:01:01]} Qg3+ {[%emt 0:05:21]} 35. Kh1 {[%emt 0:00:40]} Nf4 {[%emt 0:00:07]} 36. Qf2 Qg5 37. d4 {[%emt 0:01:15]} Nh5 {[%emt 0:00:56]} 38. dxe5+ {[%emt 0:01:18]} Nxe5 {[%emt 0:00:00]} 39. Rd1+ Ke7 {[%emt 0:01:31]} 40. Qc5+ {[%emt 0:01:13]} Kf6 {[%emt 0:00:32]} 41. Qf8+ {[%emt 0:30:11]} Nf7 {[%emt 0:30:39]} 42. Rf1+ Ke5 43. Qc5+ {[%emt 0:00:40]} 1-0

[Event "Kezmarok Chess Open 2022"]
[Site "Kezmarok"]
[Date "2022.09.27"]
[Round "5.10"]
[White "Ropovik, Samuel"]
[Black "Janik, Marek Tobias"]
[Result "0-1"]
[ECO "C42"]
[WhiteElo "1497"]
[BlackElo "1823"]
[Annotator "NA RC COMBH"]
[PlyCount "70"]
[EventDate "2022.09.24"]
[EventType "swiss"]
[EventCountry "SVK"]
[SourceTitle "playchess.com"]
[Source "ChessBase"]
[SourceQuality "1"]
[TimeControl "40/5400+30:1800+30"]

1. e4 {[%emt 0:00:16]} e5 {[%emt 0:00:05]} 2. Nf3 {[%emt 0:00:04]} Nf6 {[%emt 0:00:07]} 3. Nc3 {[%emt 0:00:09]} Bb4 {[%emt 0:00:09]} 4. Nxe5 {[%emt 0:00:45]} O-O {[%emt 0:00:14]} 5. Nd3 {[%emt 0:04:55]} Bxc3 {[%emt 0:00:09]} 6. dxc3 {[%emt 0:00:01]} Nxe4 {[%emt 0:01:13]} 7. Be2 {[%emt 0:01:06]} Re8 {[%emt 0:00:38]} 8. Be3 {[%emt 0:02:50]} d6 {[%emt 0:02:52]} 9. O-O {[%emt 0:10:02]} Nc6 {[%emt 0:03:49]} 10. Nf4 {[%emt 0:05:21]} Nf6 {[%emt 0:08:10]} 11. c4 {[%emt 0:12:17]} Bf5 {[%emt 0:04:47]} 12. c3 {[%emt 0:06:08]} Ne5 {[%emt 0:09:00]} 13. Nd5 {[%emt 0:03:14]} c6 {[%emt 0:04:35]} 14. Nxf6+ {[%emt 0:03:28]} Qxf6 {[%emt 0:00:10]} 15. Re1 {[%emt 0:05:22]} Qg6 {[%emt 0:05:42]} 16. Bh5 {[%emt 0:16:35]} Qe6 {[%emt 0:01:46]} 17. Be2 {[%emt 0:00:01]} c5 {[%emt 0:13:26]} 18. b3 {[%emt 0:03:20]} Be4 {[%emt 0:14:33]} 19. Bf4 {[%emt 0:06:34]} Rad8 {[%emt 0:05:22]} 20. Bf1 {[%emt 0:01:35]} Qg6 {[%emt 0:02:02]} 21. Bg3 {[%emt 0:00:02]} f5 {[%emt 0:06:54]} 22. Qd2 {[%emt 0:03:00]} b6 {[%emt 0:07:59]} 23. Rad1 {[%emt 0:00:59]} Qf6 {[%emt 0:02:24]} 24. Kh1 {[%emt 0:04:35]} g5 {[%emt 0:03:48]} 25. f4 {[%emt 0:01:03]} gxf4 {[%emt 0:01:16]} 26. Qxf4 {[%emt 0:00:42]} Ng6 {[%emt 0:01:20]} 27. Rxd6 {[%emt 0:03:44]} Nxf4 {[%emt 0:00:08]} 28. Rxf6 {[%emt 0:00:02]} Nh5 {[%emt 0:00:11]} 29. Rh6 {[%emt 0:03:58]} Nxg3+ {[%emt 0:00:05]} 30. hxg3 {[%emt 0:00:01]} Bxg2+ {[%emt 0:00:10]} 31. Kxg2 {[%emt 0:00:01]} Rxe1 {[%emt 0:00:10]} 32. Kf2 {[%emt 0:00:10]} Re5 {[%emt 0:00:24]} 33. Bg2 {[%emt 0:00:35]} Rd2+ {[%emt 0:01:23]} 34. Kf3 {[%emt 0:00:47]} Ree2 {[%emt 0:00:36]} 35. Rh2 {[%emt 0:00:42]} Rf2+ {[%emt 0:00:11]} 0-1

[Event "Kezmarok Chess Open 2022"]
[Site "Kezmarok"]
[Date "2022.09.27"]
[Round "5.11"]
[White "Rak, Martin"]
[Black "Sekova, Olivia"]
[Result "1/2-1/2"]
[ECO "B52"]
[WhiteElo "1805"]
[BlackElo "1797"]
[Annotator "NA RC COMBH"]
[PlyCount "117"]
[EventDate "2022.09.24"]
[EventType "swiss"]
[EventCountry "SVK"]
[SourceTitle "playchess.com"]
[Source "ChessBase"]
[SourceQuality "1"]
[TimeControl "40/5400+30:1800+30"]

1. e4 {[%emt 0:00:06]} c5 {[%emt 0:00:14]} 2. Nf3 {[%emt 0:00:10]} d6 {[%emt 0:00:24]} 3. Bb5+ {[%emt 0:00:08]} Bd7 {[%emt 0:00:20]} 4. Bxd7+ {[%emt 0:00:24]} Qxd7 {[%emt 0:00:14]} 5. c4 {[%emt 0:00:29]} Nc6 {[%emt 0:00:46]} 6. d4 {[%emt 0:01:17]} Qg4 {[%emt 0:15:03]} 7. O-O {[%emt 0:03:16]} cxd4 {[%emt 0:04:09]} 8. Nxd4 {[%emt 0:00:58]} Qxd1 {[%emt 0:02:37]} 9. Rxd1 {[%emt 0:00:08]} Nxd4 {[%emt 0:01:49]} 10. Rxd4 {[%emt 0:00:34]} g6 {[%emt 0:00:56]} 11. Na3 {[%emt 0:17:38]} Bg7 {[%emt 0:01:56]} 12. Rd1 {[%emt 0:00:52]} Rc8 {[%emt 0:04:11]} 13. Rb1 {[%emt 0:00:46]} Nf6 {[%emt 0:01:23]} 14. f3 {[%emt 0:00:13]} O-O {[%emt 0:03:20]} 15. b3 {[%emt 0:05:01]} a6 {[%emt 0:04:39]} 16. Bb2 {[%emt 0:07:58]} Rfd8 {[%emt 0:13:09]} 17. Rd3 {[%emt 0:08:03]} Nd7 {[%emt 0:14:22]} 18. Bxg7 {[%emt 0:00:51]} Kxg7 {[%emt 0:00:18]} 19. Rbd1 {[%emt 0:02:18]} Ne5 {[%emt 0:06:33]} 20. Rd5 {[%emt 0:01:22]} Nc6 {[%emt 0:01:53]} 21. Nc2 {[%emt 0:10:31]} b5 {[%emt 0:10:17]} 22. Ne3 {[%emt 0:18:04]} Nb4 {[%emt 0:03:12]} 23. R5d2 {[%emt 0:00:40]} Rc5 {[%emt 0:02:12]} 24. a3 {[%emt 0:00:58]} Nc6 {[%emt 0:00:05]} 25. b4 {[%emt 0:00:47]} Re5 {[%emt 0:03:12]} 26. c5 {[%emt 0:01:37]} Re6 {[%emt 0:01:23]} 27. cxd6 {[%emt 0:04:40]} Rdxd6 {[%emt 0:00:48]} 28. Nd5 {[%emt 0:02:59]} Rd7 {[%emt 0:03:35]} 29. Nf4 {[%emt 0:03:00]} Red6 {[%emt 0:00:15]} 30. Rxd6 {[%emt 0:00:29]} Rxd6 {[%emt 0:00:18]} 31. Rxd6 {[%emt 0:00:24]} exd6 {[%emt 0:00:03]} 32. Nd5 {[%emt 0:00:58]} Nd4 {[%emt 0:00:26]} 33. Nc7 {[%emt 0:01:05]} Nc2 {[%emt 0:00:22]} 34. Nxa6 {[%emt 0:01:10]} Nxa3 {[%emt 0:00:08]} 35. Kf2 {[%emt 0:00:53]} Kf6 {[%emt 0:01:12]} 36. Ke3 {[%emt 0:00:40]} Nc2+ {[%emt 0:01:19]} 37. Kd2 $1 {[%emt 0:00:25]} Nd4 {[%emt 0:00:17]} 38. Kd3 {[%emt 0:00:57]} Nc6 {[%emt 0:00:23]} 39. Kc3 {[%emt 0:03:08]} Ke5 {[%emt 0:00:44]} 40. Nc7 {[%emt 0:00:59]} Nd4 {[%emt 0:00:52]} 41. Kd3 {[%emt 0:06:20]} g5 {[%emt 0:02:40]} 42. Nd5 {[%emt 0:08:12]} f5 $11 {[%emt 0:05:22]} 43. Nc3 {[%emt 0:06:16]} f4 {[%emt 0:04:34]} 44. Kd2 {[%emt 0:02:17]} Nb3+ {[%emt 0:01:04]} 45. Kc2 {[%emt 0:00:22]} Nd4+ {[%emt 0:00:10]} 46. Kd3 {[%emt 0:01:33]} Nc6 {[%emt 0:02:43]} 47. Nxb5 {[%emt 0:02:56]} Nxb4+ {[%emt 0:00:06]} 48. Kc3 {[%emt 0:00:35]} Nc6 {[%emt 0:02:03]} 49. Kc4 {[%emt 0:01:04]} Na5+ {[%emt 0:02:28]} 50. Kb4 {[%emt 0:00:36]} Nc6+ {[%emt 0:00:27]} 51. Kc4 {[%emt 0:00:12]} Na5+ {[%emt 0:03:09]} 52. Kb4 {[%emt 0:00:10]} Nc6+ {[%emt 0:00:08]} 53. Kc4 {[%emt 0:00:08]} Ne7 54. Na7 Ng6 55. Nc6+ Ke6 56. Nd4+ Kf6 57. Kd5 Nh4 58. Kxd6 Nxg2 59. e5+ 1/2-1/2